Workbook

Sheet Calculations
A5: Pine Rotating Cylinder Calculation Worksheet
A6: Pine Research Instrumentation makes this worksheet available for users of our 15-mm RCE electrode products. For general efficiency and applicability across a wide range of research, we make some assumptions to generate the worksheet values. These assumptions will be clearly noted. Users should refer to our Technical Note (LMENCN200601) for "Study of Mass Transport Limited Corrosion Using Pine Rotating Cylinder Electrodes." This technical note reviews the theory and practice in these types of calculations. Users are cautioned to verify all calculations for their specific system outside of this calculation worksheet. Additionally, the user is reminded the maximum rotation rate for the 12-mm Pine RCE is 2000 RPM and the maximum rotation rate for the Pine 15-mm RCE is 4000 RPM. For your safety, do not rotate faster than rated.
A8: Values that appearlike this are automatically filled based on your input, or are constants. Do not edit them.
A9: Cells that appear like this require user input.
A11: VARIABLES
A13: Term | C13: Value | D13: Unit | E13: Symbol | F13: Notes
A14: Concentration | D14: mol / cm3 | E14: C | F14: bulk concentration, assume 1 x 10-6 for pure water
A15: Density | D15: g / cm3 | E15: ρ | F15: of the solution, 0.99713 for pure water at STP
A16: Absolute Viscosity | D16: g / cm s | E16: μ | F16: Also called dynamic viscosity, assume 0.00891 for pure water at STP
A17: Kinemtic Viscosity | C17: =IF(OR($C$15="",$C$15="***"),"***",Absolute_Viscosity/Density) -> *** | D17: cm2 / s | E17: νk | F17: Absolute viscosity divided by density, assume 0.00894 for pure water at STP
A18: Diffusion Coefficient | D18: cm2 / s | E18: D | F18: For the bulk species, assume 1 x 10-5 for pure water at STP
A19: Number of electrons | D19: - | E19: z | F19: Number of electrons transferred per reaction, if in the bulk
A21: SELECT RCE SIZE | N21: TABLE 1. HYDRODYNAMIC COMPUTATIONS FOR A TYPICAL* ROTATING CYLINDER ELECTRODE IN WATER
N22: *These quantities assume a typical Pine RCE tip (either 12-mm or 15-mm diameter) rotated in water at 25 degrees C. For pure water at 25 degrees C, the density is 0.997 g / cm3 and the absolute viscosity is 0.00891 g / cm s. Computations assume a diffusion coefficient, D = 1.0 x 10-5 cm2 / s and a bulk concentration, C = 1.0 x 10-6 mol / cm3
A23: Term | C23: Value | D23: Unit | E23: Symbol
A24: RCE Insert Diameter | C24: =IF($I$25=12,1.2,IF($I$25=15,1.5,"***")) -> *** | D24: cm | E24: drce | F24: Select 12 or 15 mm RCE from the dropdown menu
A25: RCE Insert Height | C25: =IF($I$25=12,0.795,IF($I$25=15,0.64,"***")) -> *** | D25: cm | E25: hrce | I25: Select | J25: mm
A26: RCE Insert Radius | C26: =IF($I$25=12,0.6,IF($I$25=15,0.75,"***")) -> *** | D26: cm | E26: rrce | N26: Rotation | O26: Rotation | P26: RCE | Q26: Reynolds | R26: Wall Shear | S26: Wall Shear | T26: Mass Transfer | U26: Limiting Current | V26: Limiting
A27: RCE Insert Area | C27: =IF($I$25=12,2.9971,IF($I$25=15,3.0159,"***")) -> *** | D27: cm2 | E27: Arce | N27: Rate | O27: Rate | P27: Surface Velocity | Q27: Number | R27: Stress | S27: Stress (Pa) | T27: Coefficient | U27: Current | V27: Density
N28: (RPM) | O28: (radians / s) | P28: (cm / s) | Q28: (unitless) | R28: (g / cm s2) | S28: (kg / m s2) | T28: (cm / s) | U28: (A) | V28: (A / cm2)
A29: PHYSICAL CONSTANTS | N29: 1 | O29: =2*PI()*N29/60 -> 0.1047197551 | P29: =IF($C$26="***","***",O29*$C$26) -> *** | Q29: =IF(OR($C$24=("***"),Kinematic_Viscosity=""),"***",(P29*$C$24)/Kinematic_Viscosity) -> *** | R29: =IF(OR(Density="",Q29="***"),"***",0.0791*Density*(Q29^-0.3)*($C$26^2)*(O29^2)) -> *** | S29: =R29*0.1 ->  | T29: =IF(OR($P$29="***",Diffusion_Coefficient="",Kinematic_Viscosity=""),"***",0.0791*(P29^0.7)*($C$24^(-0.3))*(Kinematic_Viscosity^(-0.344))*(Diffusion_Coefficient^(0.644))) -> *** | U29: =IF($T$29="***","***",T29*$C$38*$C$27*Number_Electrons*Concentration) -> *** | V29: =IF(U29="***","***",U29/$C$26^2) -> ***
N30: 2 | O30: =2*PI()*N30/60 -> 0.2094395102 | P30: =IF($C$26="***","***",O30*$C$26) -> *** | Q30: *** | R30: *** | S30: =R30*0.1 ->  | T30: *** | U30: *** | V30: =IF(U30="***","***",U30/$C$26^2) -> ***
A31: Term | C31: Value | D31: Unit | E31: Symbol | F31: Notes | N31: 2.5 | O31: 0.2617993878 | P31: *** | Q31: *** | R31: =IF(OR(Density="",Q31="***"),"***",0.0791*Density*(Q31^-0.3)*($C$26^2)*(O31^2)) -> *** | T31: *** | U31: *** | V31: ***
A32: Critical Reynolds Number | C32: 200 | D32: - | E32: REcrit | F32: The minimum Reynolds number to ensure turbulent flow | N32: 5 | O32: 0.5235987756 | P32: *** | Q32: *** | R32: *** | T32: *** | U32: *** | V32: ***
A33: Critical Rotation Rate | C33: =IF(C24="***","***",(C32*Kinematic_Viscosity)/(C24*C26)) -> *** | D33: rad / s | E33: ωcrit | F33: The critical rotation rate to achieve RE = 200 with the given RCE size | N33: 10 | O33: 1.047197551 | P33: *** | Q33: *** | R33: *** | T33: *** | U33: *** | V33: ***
A34: Minimum Rotation Rate | C34: =IF(C24="***","***",(C33*30)/PI()) -> *** | D34: RPM | E34: υmax,RPM | F34: Minimum rotation rate with the AFMSRCE rotator | N34: 20 | O34: 2.094395102 | P34: *** | Q34: *** | R34: *** | T34: *** | U34: *** | V34: ***
A35: Maximum Rotation Rate | C35: =IF(I25="Select","***",IF(I25=12,2000,4000)) -> *** | D35: RPM | E35: υmin,RPM | F35: Maximum safety rotation rate with the AFMSRCE rotator | N35: 25 | O35: 2.617993878 | P35: *** | Q35: *** | R35: *** | T35: *** | U35: *** | V35: ***
A36: Silverman Constant | C36: 0.1185 | D36: - | E36: Ks | F36: Constant used in calculating equivalent rotation rate | N36: 50 | O36: 5.235987756 | P36: *** | Q36: *** | R36: *** | T36: *** | U36: *** | V36: ***
A37: Schmidt Value | C37: =IF(OR(Diffusion_Coefficient="",Kinematic_Viscosity="***"),"***",(Kinematic_Viscosity/(Diffusion_Coefficient))) -> *** | D37: - | E37: Sc | F37: Kinematic viscosity divided by product of diffusion constant and density | N37: 100 | O37: 10.47197551 | P37: *** | Q37: *** | R37: *** | T37: *** | U37: *** | V37: ***
A38: Faraday's Constant | C38: 96485 | D38: C / mol | E38: F | F38: Factor to convert between current and mass, C = Coulomb | N38: 200 | O38: 20.94395102 | P38: *** | Q38: *** | R38: *** | T38: *** | U38: *** | V38: ***
A39: Temperature | C39: 25 | F39: Be advised, temperature not factored into calculation. Reference only! | N39: 250 | O39: 26.17993878 | P39: *** | Q39: *** | R39: *** | T39: *** | U39: *** | V39: ***
N40: 500 | O40: 52.35987756 | P40: *** | Q40: *** | R40: *** | T40: *** | U40: *** | V40: ***
A41: MATHEMATICAL CONSTANTS | N41: 1000 | O41: 104.7197551 | P41: *** | Q41: *** | R41: *** | T41: *** | U41: *** | V41: ***
N42: 2000 | O42: =2*PI()*N42/60 -> 209.4395102 | P42: *** | Q42: *** | R42: *** | T42: *** | U42: *** | V42: ***
A43: Term | C43: Value | D43: Unit | E43: Symbol | F43: Notes | N43: 3000 | O43: 314.1592654 | P43: *** | Q43: *** | R43: *** | T43: *** | U43: *** | V43: ***
A44: Cylinder Exponent | C44: =3/7 -> 0.4285714286 | D44: - | E44: e_cyl | F44: These exponential fits are based on theory (see Technical Note, Equation 8). They are presented explicitly here to ease mathematical manipulation for the user. | N44: 4000 | O44: 418.8790205 | P44: *** | Q44: *** | R44: *** | T44: *** | U44: *** | V44: ***
A45: Pipe Exponent | C45: =5/28 -> 0.1785714286 | D45: - | E45: e_pipe | N45: 5000 | O45: 523.5987756 | P45: *** | Q45: *** | R45: *** | T45: *** | U45: *** | V45: ***
A46: Viscosity Exponent | C46: -0.25 | D46: - | E46: e_visc | N46: 7500 | O46: 785.3981634 | P46: *** | Q46: *** | R46: *** | T46: *** | U46: *** | V46: ***
A47: Schmidt Exponent | C47: -0.0857 | D47: - | E47: e_sch | N47: 10000 | O47: 1047.197551 | P47: *** | Q47: *** | R47: *** | T47: *** | U47: *** | V47: ***
A48: Velocity Exponent | C48: =5/4 -> 1.25 | D48: - | E48: e_vel | N48: 20000 | O48: 2094.395102 | P48: *** | Q48: *** | R48: *** | T48: *** | U48: *** | V48: ***
K50: PIPE VELOCITIES | O50: TABLE 2. ROTATION RATE CORRELATION FOR WATER BETWEEN A TYPICAL* RCE AND A SMOOTH, STRAIGHT PIPE FLOW (Table Values in RPM)
L51: Schedule 40 Type | O51: "1 inch" | P51: "2 inch" | Q51: "3 inch" | R51: "4 inch" | S51: "5 inch" | T51: "6 inch" | U51: "8 inch" | V51: "10 inch" | W51: "12 inch" | X51: "14 inch" | Y51: "16 inch" | Z51: "18 inch" | AA51: "20 inch" | AB51: "24 inch"
L52: Pipe ID (cm) | O52: 2.664 | P52: 5.25 | Q52: 7.792 | R52: 10.23 | S52: 12.82 | T52: 15.41 | U52: 20.27 | V52: 25.45 | W52: 30.32 | X52: 33.3502 | Y52: 38.1 | Z52: 42.8752 | AA52: 47.7774 | AB52: 57.4802
L53: PIPE VELOCITIES | O53: *These quantities assume a typical Pine RCE tip (either 12-mm or 15-mm diameter) rotated in water at 25 degrees C. For pure water at 25 degrees C, the density is 0.997 g / cm3 and the absolute viscosity is 0.00891 g / cm s. Computations assume a diffusion coefficient, D = 1.0 x 10-5 cm2 / s and a bulk concentration, C = 1.0 x 10-6 mol / cm3
L54: (ft / s) | M54: (cm / s) | N54: (mi / hr)
L55: 0.1 | M55: =L55*12*2.54 -> 3.048 | N55: =L55*60*60/5280 -> 0.06818181818 | O55: =IF($C$37="***","***",(($C$36*($C$24^$C$44)*($O$52^((-1)*$C$45))*(Kinematic_Viscosity^$C$46)*($C$37^$C$47)*(M55^$C$48))*(60/(2*PI()*$C$26)))) -> *** | P55: =IF($C$37="***","***",(($C$36*($C$24^$C$44)*($P$52^((-1)*$C$45))*(Kinematic_Viscosity^$C$46)*($C$37^$C$47)*($M55^$C$48))*(60/(2*PI()*$C$26)))) -> *** | Q55: =IF($C$37="***","***",(($C$36*($C$24^$C$44)*(Q$52^((-1)*$C$45))*(Kinematic_Viscosity^$C$46)*($C$37^$C$47)*($M55^$C$48))*(60/(2*PI()*$C$26)))) -> *** | R55: *** | S55: *** | T55: *** | U55: *** | V55: *** | W55: *** | X55: *** | Y55: *** | Z55: *** | AA55: *** | AB55: ***
L56: 0.2 | M56: =L56*12*2.54 -> 6.096 | N56: =L56*60*60/5280 -> 0.1363636364 | O56: *** | P56: *** | Q56: *** | R56: *** | S56: *** | T56: *** | U56: *** | V56: *** | W56: *** | X56: *** | Y56: *** | Z56: *** | AA56: *** | AB56: ***
L57: 0.3 | M57: 9.144 | N57: 0.2045454545 | O57: *** | P57: *** | Q57: *** | R57: *** | S57: *** | T57: *** | U57: *** | V57: *** | W57: *** | X57: *** | Y57: *** | Z57: *** | AA57: *** | AB57: ***
L58: 0.4 | M58: 12.192 | N58: 0.2727272727 | O58: *** | P58: *** | Q58: *** | R58: *** | S58: *** | T58: *** | U58: *** | V58: *** | W58: *** | X58: *** | Y58: *** | Z58: *** | AA58: *** | AB58: ***
L59: 0.5 | M59: 15.24 | N59: 0.3409090909 | O59: *** | P59: *** | Q59: *** | R59: *** | S59: *** | T59: *** | U59: *** | V59: *** | W59: *** | X59: *** | Y59: *** | Z59: *** | AA59: *** | AB59: ***
I60: GREEN CELLS Greater than MIN RPM AND Lesser than MAX RPM | L60: 0.6 | M60: 18.288 | N60: 0.4090909091 | O60: *** | P60: *** | Q60: *** | R60: *** | S60: *** | T60: *** | U60: *** | V60: *** | W60: *** | X60: *** | Y60: *** | Z60: *** | AA60: *** | AB60: ***
L61: 0.7 | M61: 21.336 | N61: 0.4772727273 | O61: *** | P61: *** | Q61: *** | R61: *** | S61: *** | T61: *** | U61: *** | V61: *** | W61: *** | X61: *** | Y61: *** | Z61: *** | AA61: *** | AB61: ***
L62: 0.8 | M62: 24.384 | N62: 0.5454545455 | O62: *** | P62: *** | Q62: *** | R62: *** | S62: *** | T62: *** | U62: *** | V62: *** | W62: *** | X62: *** | Y62: *** | Z62: *** | AA62: *** | AB62: ***
L63: 0.9 | M63: 27.432 | N63: 0.6136363636 | O63: *** | P63: *** | Q63: *** | R63: *** | S63: *** | T63: *** | U63: *** | V63: *** | W63: *** | X63: *** | Y63: *** | Z63: *** | AA63: *** | AB63: ***
L64: 1 | M64: 30.48 | N64: 0.6818181818 | O64: *** | P64: *** | Q64: *** | R64: *** | S64: *** | T64: *** | U64: *** | V64: *** | W64: *** | X64: *** | Y64: *** | Z64: *** | AA64: *** | AB64: ***
L65: 2 | M65: 60.96 | N65: 1.363636364 | O65: *** | P65: *** | Q65: =IF($C$37="***","***",(($C$36*($C$24^$C$44)*(Q$52^((-1)*$C$45))*(Kinematic_Viscosity^$C$46)*($C$37^$C$47)*($M65^$C$48))*(60/(2*PI()*$C$26)))) -> *** | R65: *** | S65: *** | T65: *** | U65: *** | V65: *** | W65: *** | X65: *** | Y65: *** | Z65: *** | AA65: *** | AB65: ***
I66: RED CELLS Lesser than MIN RPM OR Greater than MAX RPM | L66: 3 | M66: 91.44 | N66: 2.045454545 | O66: *** | P66: *** | Q66: *** | R66: *** | S66: *** | T66: *** | U66: *** | V66: *** | W66: *** | X66: *** | Y66: *** | Z66: *** | AA66: *** | AB66: ***
L67: 4 | M67: 121.92 | N67: 2.727272727 | O67: *** | P67: *** | Q67: *** | R67: *** | S67: *** | T67: *** | U67: *** | V67: *** | W67: *** | X67: *** | Y67: *** | Z67: *** | AA67: *** | AB67: ***
L68: 5 | M68: 152.4 | N68: 3.409090909 | O68: *** | P68: *** | Q68: *** | R68: *** | S68: *** | T68: *** | U68: *** | V68: *** | W68: *** | X68: *** | Y68: *** | Z68: *** | AA68: *** | AB68: ***
L69: 6 | M69: 182.88 | N69: 4.090909091 | O69: *** | P69: *** | Q69: *** | R69: *** | S69: *** | T69: *** | U69: *** | V69: *** | W69: *** | X69: *** | Y69: *** | Z69: *** | AA69: *** | AB69: ***
L70: 7 | M70: 213.36 | N70: 4.772727273 | O70: *** | P70: *** | Q70: *** | R70: *** | S70: *** | T70: *** | U70: *** | V70: *** | W70: *** | X70: *** | Y70: *** | Z70: *** | AA70: *** | AB70: ***
L71: 8 | M71: 243.84 | N71: 5.454545455 | O71: *** | P71: *** | Q71: *** | R71: *** | S71: *** | T71: *** | U71: *** | V71: *** | W71: *** | X71: *** | Y71: *** | Z71: *** | AA71: *** | AB71: ***
L72: 9 | M72: 274.32 | N72: 6.136363636 | O72: *** | P72: *** | Q72: *** | R72: *** | S72: *** | T72: *** | U72: *** | V72: *** | W72: *** | X72: *** | Y72: *** | Z72: *** | AA72: *** | AB72: ***
L73: 10 | M73: 304.8 | N73: 6.818181818 | O73: *** | P73: *** | Q73: *** | R73: *** | S73: *** | T73: *** | U73: *** | V73: *** | W73: *** | X73: *** | Y73: *** | Z73: *** | AA73: *** | AB73: ***
L74: 11 | M74: 335.28 | N74: 7.5 | O74: *** | P74: *** | Q74: *** | R74: *** | S74: *** | T74: *** | U74: *** | V74: *** | W74: *** | X74: *** | Y74: *** | Z74: *** | AA74: *** | AB74: ***
L75: 12 | M75: 365.76 | N75: 8.181818182 | O75: *** | P75: *** | Q75: =IF($C$37="***","***",(($C$36*($C$24^$C$44)*(Q$52^((-1)*$C$45))*(Kinematic_Viscosity^$C$46)*($C$37^$C$47)*($M75^$C$48))*(60/(2*PI()*$C$26)))) -> *** | R75: *** | S75: *** | T75: *** | U75: *** | V75: *** | W75: *** | X75: *** | Y75: *** | Z75: *** | AA75: *** | AB75: ***
L76: 13 | M76: 396.24 | N76: 8.863636364 | O76: *** | P76: *** | Q76: *** | R76: *** | S76: *** | T76: *** | U76: *** | V76: *** | W76: *** | X76: *** | Y76: *** | Z76: *** | AA76: *** | AB76: ***
L77: 14 | M77: 426.72 | N77: 9.545454545 | O77: *** | P77: *** | Q77: *** | R77: *** | S77: *** | T77: *** | U77: *** | V77: *** | W77: *** | X77: *** | Y77: *** | Z77: *** | AA77: *** | AB77: ***
L78: 15 | M78: 457.2 | N78: 10.22727273 | O78: *** | P78: *** | Q78: *** | R78: *** | S78: *** | T78: *** | U78: *** | V78: *** | W78: *** | X78: *** | Y78: *** | Z78: *** | AA78: *** | AB78: ***
L79: 16 | M79: 487.68 | N79: 10.90909091 | O79: *** | P79: *** | Q79: *** | R79: *** | S79: *** | T79: *** | U79: *** | V79: *** | W79: *** | X79: *** | Y79: *** | Z79: *** | AA79: *** | AB79: ***
L80: 17 | M80: 518.16 | N80: 11.59090909 | O80: *** | P80: *** | Q80: *** | R80: *** | S80: *** | T80: *** | U80: *** | V80: *** | W80: *** | X80: *** | Y80: *** | Z80: *** | AA80: *** | AB80: ***
L81: 18 | M81: 548.64 | N81: 12.27272727 | O81: *** | P81: *** | Q81: *** | R81: *** | S81: *** | T81: *** | U81: *** | V81: *** | W81: *** | X81: *** | Y81: *** | Z81: *** | AA81: *** | AB81: ***
L82: 19 | M82: 579.12 | N82: 12.95454545 | O82: *** | P82: *** | Q82: *** | R82: *** | S82: *** | T82: *** | U82: *** | V82: *** | W82: *** | X82: *** | Y82: *** | Z82: *** | AA82: *** | AB82: ***
L83: 20 | M83: =L83*12*2.54 -> 609.6 | N83: =L83*60*60/5280 -> 13.63636364 | O83: =IF($C$37="***","***",(($C$36*($C$24^$C$44)*($O$52^((-1)*$C$45))*(Kinematic_Viscosity^$C$46)*($C$37^$C$47)*(M83^$C$48))*(60/(2*PI()*$C$26)))) -> *** | P83: *** | Q83: *** | R83: *** | S83: *** | T83: *** | U83: *** | V83: *** | W83: *** | X83: *** | Y83: *** | Z83: *** | AA83: *** | AB83: ***
L84: Schedule 40 Type | O84: "1 inch" | P84: "2 inch" | Q84: "3 inch" | R84: "4 inch" | S84: "5 inch" | T84: "6 inch" | U84: "8 inch" | V84: "10 inch" | W84: "12 inch" | X84: "14 inch" | Y84: "16 inch" | Z84: "18 inch" | AA84: "20 inch" | AB84: "24 inch"
L85: Pipe ID (cm) | O85: 2.664 | P85: 5.25 | Q85: 7.792 | R85: 10.23 | S85: 12.82 | T85: 15.41 | U85: 20.27 | V85: 25.45 | W85: 30.32 | X85: 33.3502 | Y85: 38.1 | Z85: 42.8752 | AA85: 47.7774 | AB85: 57.4802
K88: =IF(AND(A1>200,A1<300),A1,"") -> 
F89: Enter your own pipe velocity in ft / s All other cells will automatically calculate | L89: Schedule 40 Type | O89: "1 inch" | P89: "2 inch" | Q89: "3 inch" | R89: "4 inch" | S89: "5 inch" | T89: "6 inch" | U89: "8 inch" | V89: "10 inch" | W89: "12 inch" | X89: "14 inch" | Y89: "16 inch" | Z89: "18 inch" | AA89: "20 inch" | AB89: "24 inch"
L90: Pipe ID (cm) | O90: 2.664 | P90: 5.25 | Q90: 7.792 | R90: 10.23 | S90: 12.82 | T90: 15.41 | U90: 20.27 | V90: 25.45 | W90: 30.32 | X90: 33.3502 | Y90: 38.1 | Z90: 42.8752 | AA90: 47.7774 | AB90: 57.4802
L91: PIPE VELOCITY
L92: (ft / s) | M92: (cm / s) | N92: (mi / hr)
M93: =IF(L93="","***",L93*12*2.54) -> *** | N93: =IF(L93="","***",M93*60*60/5280) -> *** | O93: =IF($M$93="***","***",(($C$36*($C$24^$C$44)*(O$52^((-1)*$C$45))*(Kinematic_Viscosity^$C$46)*($C$37^$C$47)*($M$93^$C$48))*(60/(2*PI()*$C$26)))) -> *** | P93: *** | Q93: *** | R93: *** | S93: *** | T93: *** | U93: *** | V93: *** | W93: *** | X93: *** | Y93: *** | Z93: *** | AA93: *** | AB93: ***
F98: Based on the settings entered and data from Table 2, enter a rotation rate and pipe ID to get an estimate of pipe velocity. | L98: REVERSE CALCULATE
L99: Pipe ID (cm)
L100: Rate (RPM)
L101: PIPE VELOCITY
L102: (ft / s) | M102: (cm / s) | N102: (mi / hr)
L103: =IF(OR(M103="***",M103=""),"***",M103/(2.54*12)) -> *** | M103: =IF(OR(N99="",N100=""),"***",((N100/((60/(2*PI()*$C$26))*$C$36*($C$24^$C$44)*($N$99^((-1)*$C$45))*(Kinematic_Viscosity^$C$46)*($C$37^$C$47)))^(1/$C$48))) -> *** | N103: =IF(OR(M103="",M103="***"),"***",M103*60*60/(2.54*12*5280)) -> ***

Sheet ANSI Steel Pipe Values
A1: SOURCE | B1: http://www.engineeringtoolbox.com/ansi-steel-pipes-d_305.html | I1: Cyl DIA
I2: 12
A3: size (in) | B3: od (in) | C3: id (in) | D3: ID (cm) | I3: 15
A4: 0.125 | B4: 0.41 | C4: 0.27 | D4: =C4*2.54 -> 0.6858
A5: 0.25 | B5: 0.54 | C5: 0.36 | D5: 0.9144
A6: 0.375 | B6: 0.68 | C6: 0.49 | D6: 1.2446
A7: 0.5 | B7: 0.84 | C7: 0.62 | D7: 1.5748
A8: 0.75 | B8: 1.05 | C8: 0.82 | D8: 2.0828
A9: 1 | B9: 1.32 | C9: 1.05 | D9: 2.667
A10: 1.25 | B10: 1.66 | C10: 1.38 | D10: 3.5052
A11: 1.5 | B11: 1.9 | C11: 1.61 | D11: 4.0894
A12: 2 | B12: 2.38 | C12: 2.07 | D12: 5.2578
A13: 2.5 | B13: 2.88 | C13: 2.47 | D13: 6.2738
A14: 3 | B14: 3.5 | C14: 3.07 | D14: 7.7978
A15: 3.5 | B15: 4 | C15: 3.55 | D15: 9.017
A16: 4 | B16: 4.5 | C16: 4.03 | D16: 10.2362
A17: 5 | B17: 5.56 | C17: 5.05 | D17: 12.827
A18: 6 | B18: 6.63 | C18: 6.07 | D18: 15.4178
A19: 8 | B19: 8.63 | C19: 7.98 | D19: 20.2692
A20: 10 | B20: 10.75 | C20: 10.02 | D20: 25.4508
A21: 12 | B21: 12.75 | C21: 11.94 | D21: 30.3276
A22: 14 | B22: 14 | C22: 13.13 | D22: 33.3502
A23: 16 | B23: 16 | C23: 15 | D23: 38.1
A24: 18 | B24: 18 | C24: 16.88 | D24: 42.8752
A25: 20 | B25: 20 | C25: 18.81 | D25: 47.7774
A26: 24 | B26: 24 | C26: 22.63 | D26: 57.4802
